Cogmind - Beta 13 X2 @@@ ROGUE MODE // 2024.02.10 @ 21:55:38 Player: Minty Result: Destroyed by Autobeam Turret with Autobeam Performance ------------- Evolutions (0) 0 Regions Visited (2) 400 Robots Destroyed (18) 90 Value Destroyed (321) 321 Prototype IDs (0) 0 Alien Tech Used (0) 0 Bonus (0) 0 TOTAL SCORE: 811 Bonus ------- None Cogmind --------- Core Integrity 0/250 Matter 140/300 Energy 100/100 System Corruption 0% Temperature Cool (30) Movement Core (350) Ox6 Location -10/Subcaves Parts ------- > --- POWER (1) -------- (None) > --- PROPULSION (2) --- (None) > --- UTILITY (2) ------ Small Storage Unit Makeshift Light Armor Plating > --- WEAPON (2) ------- Beam Cannon Subdweller Beam Cannon > --- INVENTORY (8) ---- Signal Interpreter Battle Rifle Peak State ------------ > --- POWER ------------ Ion Engine > --- PROPULSION ------- Aluminum Leg > --- UTILITY ---------- Small Storage Unit Makeshift Light Armor Plating > --- WEAPON ----------- Grenade Launcher Grenade Launcher > --- INVENTORY -------- High-capacity Battery Signal Interpreter EM Pulse Gun EM Pulse Gun Medium Laser Medium Laser Beam Cannon Subdweller Beam Cannon [Rating: 9] Favorites ----------- Power Light Ion Engine Engine Light Ion Engine Propulsion Aluminum Leg Leg Aluminum Leg Utility Small Storage Unit Storage Small Storage Unit Protection Makeshift Light Armor Plating Weapon Medium Laser Energy Gun Medium Laser Energy Cannon Beam Cannon Launcher Grenade Launcher Build | -11 -10 -10 ------- Run | Yrd Mat Sub Slots Evolved . | . . . Power . | . . . Propulsion . | . . . Utility . | . . . Weapon . | . . . Parts Attached 13 | . 5 8 Power 1 | . . 1 Engine 1 | . . 1 Core . | . . . Reactor . | . . . Propulsion . | . . . Treads . | . . . Leg . | . . . Wheel . | . . . Hover . | . . . Flight . | . . . Utility 2 | . 1 1 Device . | . . . Storage 1 | . 1 . Processor . | . . . Hackware . | . . . Protection 1 | . . 1 Artifact . | . . . Weapon 10 | . 4 6 Energy Gun 5 | . 3 2 Energy Cannon 2 | . . 2 Ballistic Gun . | . . . Ballistic Cannon . | . . . Launcher 3 | . 1 2 Special Weapon . | . . . Impact Weapon . | . . . Slashing Weapon . | . . . Piercing Weapon . | . . . Special Melee Weapon . | . . . Unidentified Prototypes . | . . . Parts Lost 7 | . . 7 Power 1 | . . 1 Propulsion 2 | . . 2 Utility . | . . . Weapon 4 | . . 4 Highest Loss Streak 6 | . . 6 To Critical Strikes . | . . . Average Slot Usage (%) 94 | . 98 84 Engine 13 | . 14 12 Leg 24 | . 28 16 Storage 25 | . 26 23 Protection 1 | . . 4 Energy Gun 20 | . 28 5 Launcher 5 | . . 18 Naked Turns . | . . . Heaviest Build 20 | 11 16 20 Greatest Support 20 | 20 20 20 Greatest Overweight (x) 4 | . . 4 Average Overweight (x) . | . . . Largest Inventory Capacity 8 | . 8 8 Average Capacity 8 | . 8 8 Most Carried 8 | . 8 8 Average Carried 7 | . 7 7 Final Capacity 8 | 8 8 8 Final Carried 8 | 6 8 2 Class Distribution -------------------- 100% | Mutant Dominant Class ---------------- Mutant | -10/Materials Mutant | -10/Subcaves Resources | -11 -10 -10 ----------- Run | Yrd Mat Sub Matter Collected 285 | 200 14 71 Remotely . | . . . Salvage Created 273 | . 158 115 Parts 28 | . 17 11 Haulers Intercepted . | . . . Recyclers Shooed . | . . . Parts Field Recycled . | . . . Retrieved Matter . | . . . Parts Self-Destructed 5 | . . 5 Prevented . | . . . Kills | -11 -10 -10 ------- Run | Yrd Mat Sub Combat Hostiles Destroyed 14 | . 5 9 Guns 5 | . 5 . AOE 9 | . . 9 Classes Destroyed 6 | . 4 2 Tunneler 2 | . 2 . Turret 1 | . . 1 Watcher 1 | . 1 . Swarmer 10 | . 3 7 Grunt 2 | . 2 . Subdweller 2 | . . 2 Best Kill Streak 4 | . 3 4 Combat Bots Only 4 | . 3 4 Max Kills in Single Turn 3 | . 2 3 Gunslinging 1 | . 1 . Exploded 3 | . . 3 Melee . | . . . Uniques/NPCs Destroyed . | . . . Combat | -11 -10 -10 -------- Run | Yrd Mat Sub Hostile Shots Fired 237 | . 40 197 Missed 96 | . 8 88 Damage Taken 1188 | . 340 848 Core 251 | . 79 172 Absorbed by Shields . | . . . Core Remaining (%) 100 | 100 . . Volleys Fired 48 | . 26 22 Largest 2 | . 2 2 Hottest 140 | . 90 140 Shots Fired 87 | . 49 38 Gun 62 | . 48 14 Cannon 10 | . . 10 Launcher 15 | . 1 14 Special . | . . . Kinetic . | . . . Thermal 56 | . 46 10 Explosive 15 | . 1 14 Electromagnetic 16 | . 2 14 Robot Hit Streak 7 | . 7 5 Robot Miss Streak 5 | . 5 3 Penetration Max . | . . . Secondary Targets 2 | . 2 . Max Gunslinging Chain 1 | . 1 . Shots Hit Robots 40 | . 27 13 Core Hits 24 | . 11 13 Critical Kills . | . . . Critical Parts Destroyed . | . . . Critical Strikes 1 | . 1 . Burn 1 | . 1 . Melee Attacks . | . . . Impact . | . . . Slashing . | . . . Piercing . | . . . Sneak Attacks . | . . . Combat Hostiles . | . . . Follow-up Attacks . | . . . Damage Inflicted 1121 | . 393 728 Guns 418 | . 330 88 Cannons 98 | . . 98 Explosions 605 | . 63 542 Melee . | . . . Ramming . | . . . Kinetic . | . . . Thermal 416 | . 318 98 Explosive 605 | . 63 542 Electromagnetic 100 | . 12 88 Impact . | . . . Slashing . | . . . Piercing . | . . . Highest Corruption . | . . . Average Corruption . | . . . Corruption Purged . | . . . Corruption Blocked . | . . . Overload Shots . | . . . Overflow Damage 49 | . . 49 Projectiles 14 | . . 14 Explosions 35 | . . 35 Melee . | . . . Knockbacks . | . . . Impact . | . . . Kinetic . | . . . Secondary . | . . . Self-Inflicted Damage 81 | . 7 74 Shots 5 | . 1 4 Rammed . | . . . Targets Rammed . | . . . Kicked . | . . . Crushed . | . . . Highest Temperature 351 | . 351 78 Average Temperature 105 | . 125 26 Received Heat Transfer 666 | . 126 540 Effects 1 | . 1 . Shutdowns 1 | . 1 . Siege Activations . | . . . Robots Corrupted . | . . . Combat Hostiles . | . . . Parts Fried . | . . . Impact Corruptions . | . . . Robots Melted . | . . . Combat Hostiles . | . . . Parts Melted 5 | . 5 . Heat Transferred 1090 | . 905 185 Parts Sabotaged . | . . . Parts Stolen . | . . . Parts Stripped . | . . . Power Chain Reactions . | . . . Missiles Intercepted . | . . . Alert | -11 -10 -10 ------- Run | Yrd Mat Sub Peak Influence 154 | . 154 . Initial . | . . . Average 92 | . 92 . Maximum Alert Level . | . . . Low Security (%) 100 | . 100 . Level 1 . | . . . Level 2 . | . . . Level 3 . | . . . Level 4 . | . . . Level 5 . | . . . High Security . | . . . Max Security . | . . . Squads Dispatched . | . . . Investigation . | . . . Extermination . | . . . Reinforcement . | . . . Assault . | . . . Garrison . | . . . Intercept . | . . . Searches Triggered . | . . . Construction Impeded . | . . . Haulers Reinforced . | . . . Active Scanning Responses . | . . . Cargo Convoy Interrupts . | . . . Stealth | -11 -10 -10 --------- Run | Yrd Mat Sub Distress Signals . | . . . Communications Jammed . | . . . Distress Signals . | . . . Times Spotted 101 | . 7 94 Peak Tracking Total 6 | . 4 6 Tactical Retreats 5 | . . 5 Traps | -11 -10 -10 ------- Run | Yrd Mat Sub Traps Triggered . | . . . Indirectly . | . . . Trap Hack Attempts . | . . . Triggered . | . . . Disarmed . | . . . Reprogrammed . | . . . Reused . | . . . Traps Extracted . | . . . Installed . | . . . Triggered . | . . . Machines | -11 -10 -10 ---------- Run | Yrd Mat Sub Machines Disabled 3 | . . 3 Max in Single Turn 1 | . . 1 Machines Repaired . | . . . Machines Dismantled . | . . . Machines Sabotaged . | . . . Overloaded Fab Kills . | . . . Hacking | -11 -10 -10 --------- Run | Yrd Mat Sub Machines Accessed 1 | . 1 . Terminals 1 | . 1 . Fabricators . | . . . Repair Stations . | . . . Recycling Units . | . . . Scanalyzers . | . . . Garrison Access . | . . . Total Hacks 3 | . 3 . Successful 2 | . 2 . Failed 1 | . 1 . Catastrophic . | . . . Database Lockouts . | . . . Manual 1 | . 1 . Terminals 3 | . 3 . Fabricators . | . . . Repair Stations . | . . . Recycling Units . | . . . Scanalyzers . | . . . Garrison Access . | . . . Terminal Hacks 1 | . 1 . Patrol Status 1 | . 1 . Fabricator Hacks . | . . . Repair Station Hacks . | . . . Recycling Unit Hacks . | . . . Scanalyzer . | . . . Garrison Access Hacks . | . . . Unauthorized Hacks 1 | . 1 . Terminals 1 | . 1 . Botnet 1 | . 1 . Fabricators . | . . . Repair Stations . | . . . Recycling Units . | . . . Scanalyzers . | . . . Garrison Access . | . . . Data Cores Recovered . | . . . Used . | . . . Hacking Detections 1 | . 1 . Full Trace Events 1 | . 1 . Feedback Events . | . . . Feedback Blocked . | . . . Robot Schematics Acquired . | . . . Robots Built . | . . . Authchips . | . . . Time . | . . . Total Robot Build Rating . | . . . Part Schematics Acquired . | . . . Parts Built . | . . . Authchips . | . . . Time . | . . . Total Part Build Rating . | . . . Parts Repaired . | . . . Time . | . . . Parts Recycled . | . . . Recycled Matter . | . . . Retrieved Matter . | . . . Retrieved Components . | . . . Parts Scanalyzed . | . . . Part Schematics Acquired . | . . . Parts Damaged . | . . . Bothacking | -11 -10 -10 ------------ Run | Yrd Mat Sub Used RIF Installer . | . . . Robots Hacked . | . . . Non-combat . | . . . Combat . | . . . Robot Hacks Applied . | . . . Relay Couplers Released . | . . . Fabnet Peak Effective % . | . . . Robots Rewired . | . . . Allies Hacked . | . . . Hacks Repelled . | . . . Allies | -11 -10 -10 -------- Run | Yrd Mat Sub Total Allies . | . . . Largest Group . | . . . Highest-Rated Group . | . . . Highest-Rated Ally . | . . . Total Orders . | . . . Ally Attacks . | . . . Total Damage . | . . . Kills . | . . . Allies Corrupted . | . . . Allies Melted . | . . . Intel | -11 -10 -10 ------- Run | Yrd Mat Sub Robot Analysis Total . | . . . Derelict Logs Recovered . | . . . Drone Launches . | . . . Drone Recoveries . | . . . Exploration | -11 -10 -10 ------------- Run | Yrd Mat Sub Turns Passed 667 | . 457 210 Spaces Moved 242 | 1 150 91 Core 3 | . . 3 Treads . | . . . Legs 239 | 1 150 88 Wheels . | . . . Hover . | . . . Flight . | . . . Fastest Speed 120 | 120 120 120 Average Speed 129 | 120 120 145 Slowest Speed 250 | 120 120 250 Overloaded Moves . | . . . Propulsion Burnouts . | . . . Robots Hopped . | . . . Cave-ins Triggered . | . . . Exploration Rate (%) 16 | 2 36 12 Regions Visited 2 Branch Regions 1 Pre-discovered Areas . | . . . Known Exits Taken . | . . . Unknown Exits Taken 2 | 1 1 . Scrap Searched . | . . . Spaces Dug . | . . . Terrain Destroyed 38 | . 1 37 Melee . | . . . Projectile 2 | . . 2 AOE 36 | . 1 35 Terrain Rammed . | . . . Walls Destroyed . | . . . Machines Disabled . | . . . Actions | -11 -10 -10 --------- Run | Yrd Mat Sub Total 511 | . 379 132 Wait 190 | . 187 3 Move 240 | . 149 91 Hop . | . . . Pick Up 8 | . 6 2 Fast Attach 3 | . 2 1 Attach 4 | . . 4 Detach 1 | . . 1 Swap 6 | . 3 3 Drop 11 | . 6 5 Fire 48 | . 26 22 Melee . | . . . Ram . | . . . Kick . | . . . Crush . | . . . Escape Stasis . | . . . Rewire . | . . . Trap . | . . . Miscellaneous . | . . . Route ------- -11/Scrapyard -10/Materials (discovered 3 exits: [*Mat] / [*Min] / [*Sub]) -10/Subcaves (discovered 1 exit: [*Rec]) History --------- Turn | Location | Event 1 | -11/Scrapyard | Discovered new exit (range 0) 1 | -11/Scrapyard | Entered Materials 174 | -10/Materials | Discovered new exit (range 7) 310 | -10/Materials | Build established: Mutant 361 | -10/Materials | Discovered new exit (range 5) 446 | -10/Materials | Discovered new exit (range 7) 458 | -10/Materials | Entered Subcaves 583 | -10/Subcaves | Shifting Twisted Machinery released Battle Rifle 586 | -10/Subcaves | Shifting Twisted Machinery released Mak. Light Armor Plating 615 | -10/Subcaves | Core integrity fell below 50% 620 | -10/Subcaves | Discovered new exit (range 14) 627 | -10/Subcaves | Core integrity fell below 20% 668 | -10/Subcaves | Destroyed by Autobeam Turret with Autobeam Last Messages --------------- 00607_ S-10 Pest destroyed. 00607_ Destroyed Lgt. Ion Engine. 00607_ S-10 Pest destroyed. 00612_ Aluminum Leg destroyed. 00614_ Grenade Launcher destroyed. 00617_ Flight Unit fries itself beyond repair. 00620_ EXIT=FOUND 00622_ Lgt. Ion Engine fries itself beyond repair. 00625_ Lgt. Assault Rifle fries itself beyond repair. 00628_ Machine disabled. 00640_ Ion Engine destroyed. 00640_ EM Pulse Gun destroyed. 00645_ Machine disabled. 00646_ The unstable cave ceiling collapses. 00646_ EM Pulse Gun destroyed. 00655_ Destroyed Autobeam. 00659_ Autobeam Turret destroyed. 00665_ Dropped Hcp. Battery. 00666_ Extracted 77 energy. 00667_ Extracted 27 energy. Map ----- +----------------------------------------------------+ | ?????????????????????????????????????????????????? | | ?????????????????????????????????????????????????? | | ???????????????????????????????????????? ???????? | | ?????????####??????????????????????????? #??????? | | ????????? #?????????????????????????# #??????? | | ?????????? ##??????????????????????? ??????? | | ?????????? #??????????????????????? ##?????? | | ??????????? #???????????????????????# ????##? | | ???????????# ##??????????????????????# ##??? #? | | ???????????? #?????????????????????? #?? ## | | ????????????# #??????????????????????# #### # | | ????????????# #????????????????????#### ## ? | | ??????????### ####?#####??#####???## #?? | | ?????????## ### "#### ##### #??? | | ?????????# ## " &&& " ## ##?? | | ?? & """" #?? | | #### *[= " " ##? | | ## ### # ## ###??## "" & "" ## #? | | ?????#?# #?## ##?????## # ##### ## #? | | ???????##???####???????## ### ####??##### #? | | ?????????????###????????#"###### ??????# #? | | ????????????"" ?????##"""""""""####### ## | | ???????????#" ???# """""## # ## | | ???????????# ## """""#?#"""""# | | ????????????"" ; ""###" | | ??????????;< % @ #### | | ????????????""t "" [""##??# ## | | ???????????#" # ""[* "#???# ##### % | | ???????????# # " ""## #??# #???## | | ???????????#""" ??# "#### #?"" #????# | | ??????????????????## "#??## #?##"### | | ???????????????????# ## "???###??##??## | | ???????????????????## ?## "?????????????# | | ????????????????????# ??# ?????????????# ## | | ???????????????????? ??? ?????????????## #? | | ??????????????????? ??? ?????????????# %? | | ?????????????????? ???? ?????????????##% #? | | ?????????????????? ??? ????????????? ?? | | ?????????????????? ???? ????????????# ?? | | ????????????????????????? ?????????????? ?? | | ????????????????????????? ? ???????????????? ?? | | ??????????????????????????????????????????? ?? | | ?????????????????????????????????????????????##??? | | ?????????????????????????????????????????????????? | | ?????????????????????????????????????????????????? | | ?????????????????????????????????????????????????? | | ?????????????????????????????????????????????????? | | ?????????????????????????????????????????????????? | | ?????????????????????????????????????????????????? | | ?????????????????????????????????????????????????? | +----------------------------------------------------+ Best States ------------- Heat Dissipation 25 Energy Generation 10 Energy Capacity 375 Matter Stores 300 Matter Capacity 300 Sight Range 16 Terrain Scan Density 10 Armor Coverage 100 Evasion (%) 55 Item Schematics ----------------- None Robot Schematics ------------------ None Fabricated ------------ Nothing Alien Tech Used ----------------- None Achievements -------------- None Challenges ------------ None Game ------ Seed DrainedDroneCutter Manual? 0 Play Time 00:05:49 Cumulative 647.6 hours Start 2024.02.10 @ 21:51:51 End 2024.02.10 @ 21:55:38 Sessions 1 Manual Loads 0 Difficulty Rogue Special Mode None Game No. 638 Rogue 365 Adventurer 123 Explorer 150 Win Type - Total 25 Types 19/0/4/1/0/0/0/1/0 Lore% 80 Gallery% 91 Achievement% 76 Wizard Run 0 Options --------- ASCII 0 Keyboard 1 Movement Numpad Keybinds 0 Fullscreen 2 Font 18/X11Bold Map View 76x50 Zoom Use 0% Tactical HUD 1 Map Filters NONE Filters NONE Steam 1 RUN: c32529fc-ab62-42fe-89cc-9c12a32ff828